Workbook

Sheet Procedure
A1: Mounting Position Calculator
A2: PROCEDURE
A3: The following calculator helps you to work out the best mounting positions for the ForkAngles cable-guide and cable-adjuster assemblies.
A4: Method:
A5: Adjust the forklift tilt control until the forks are level with the ground.
A6: Identify possible mounting positions for the cable-guide and cable-adjuster assemblies.
A7: Tip: mark the proposed mounting positions with chalk so you can refer to them again
A8: Follow the below steps and enter the measurements into the results page:
A9: Step 1: Measure height of cable-guide from ground
A10: Step 2: Measure horizontal distance between cable-guide and mast face
A11: Step 3: Measure horizontal distance from mast face to cable adjuster
A12: Step 4: Measure vertical height of cable-adjuster from ground
A13: Step 5: Measure sideways offset of cable-adjuster from cable-guide
A14: Step 6: Measure height of mast fulcrum from ground
A15: Step 7: Measure horizontal distance between mast face and mast fulcrum
A16: Step 8: *Enter the maximum backward tilt angles for your forklift truck.
A17: Step 9: *Enter the maximum forward tilt angles for your forklift truck.
A18: * Note: These figures can be obtained from the manufacturer or by measurement using the tilt-angle calculator.
A20: Results:
A21: The mounting position calculator will workout the amount of movement of the indicator weight based on the above measurements. The amount of movement in upward and downward directions both need to limited so that the indicator weight remains within its guide-tube.
A22: If either movement is too much, then you will be advised which mounting position dimensions need revising. Re-enter the revised dimensions and instantly see the effect on the results page.
A23: Adjust the proposed mounting positions until both upward and downward movements are within limits for your model of ForkAngles
A24: To get the best accuracy from ForkAngles choose mounting positions to give the highest resolution

Sheet Step 1
B1: Mounting Position Calculator
A2: STEP 1
A3: Measure the proposed height of cable-guide from ground
A4: Enter dimension (a) in results page and select the units used.

Sheet Step 2
B1: Mounting Position Calculator
A2: STEP 2
A3: Measure horizontal distance between cable-guide and mast face
A4: Note: dimension (b) depends on whether the cable-guide is mounted onto the rear or the side face of the mast.
A5: Enter dimension (b) in results page and select the units used.

Sheet Step 3
B1: Mounting Position Calculator
A2: STEP 3
A3: Measure horizontal distance from mast face to cable adjuster
A4: Enter dimension (c) in results page and select the units used.

Sheet Step 4
B1: Mounting Position Calculator
A2: STEP 4
A3: Measure vertical height of cable-adjuster from ground
A4: Note: Cable adjuster can also be mounted to vertical surfaces
A5: Enter dimension (d) in results page and select the units used.

Sheet Step 5
B1: Mounting Position Calculator
A2: STEP 5
A3: Measure sideways offset of cable-adjuster from cable-guide
A4: Enter dimension (e)in results page and select the units used.

Sheet Step 6
B1: Mounting Position Calculator
A2: STEP 6
A3: Measure height of mast fulcrum from ground
A4: Note: Mast fulcrum is not necessarily the centre of the front wheel.
A5: Enter dimension (f) in results page and select the units used.

Sheet Step 7
B1: Mounting Position Calculator
A2: STEP 7
A3: Measure horizontal distance between mast face and mast fulcrum
A4: Note: Mast fulcrum is not necessarily the centre of the front wheel.
A5: Enter dimension (g) in results page and select the units used.

Sheet Step 8
B1: Mounting Position Calculator
A2: STEP 8
A3: Enter the maximum backward tilt angles for your forklift truck.
A4: Note: if entering angles directly from manufacturers literature, there can be +/- 0.5 degree error. It is recommended to either add 0.5 degrees to manufacturers figures or use the tilt-angle calculator to confirm actual measurement.

Sheet Step 9
B1: Mounting Position Calculator
A2: STEP 9
A3: Enter the maximum forward tilt angles for your forklift truck.
A4: Note: if entering angles directly from manufacturers literature, there can be +/- 0.5 degree error. It is recommended to either add 0.5 degrees to manufacturers figures or use the tilt-angle calculator to confirm actual measurement.

Sheet Results
D1: Mounting Position Calculator
A2: RESULTS
A3: Enter the values you have measured for each step :
B4: Go to:
C5: dimension (a) | D5: 190 | E5: cm
C6: dimension (b) | D6: 7 | E6: cm
C7: dimension (c) | D7: 65 | E7: cm
C8: dimension (d) | D8: 190 | E8: cm
C9: dimension (e) | D9: 5 | E9: cm
C10: dimension (f) | D10: 20 | E10: cm
C11: dimension (g) | D11: 25 | E11: cm
C12: back tilt angle | D12: 8 | E12: degrees
C13: forward tilt angle | D13: 8 | E13: degrees
C14: Select which model of ForkAngles | D14: 03000
A15: =IF(R41>G33,"Distance from cable-guide to adjuster is too much,reduce c or e","") -> 
A16: Based on the measurements you have entered above, the indicator weight will move by the following amounts:
B18: Movement of indicator at full back-tilt:
B19: Downward | C19: =100*(R37-$R$40) -> 23.6751755 | D19: cm | E19: =IF(C19>G32,"= Too much","= OK") -> = OK
A20: =IF(AND(C19>G32,I43>0),"You need to increase (b),(d) or (e), or decrease (a) or (c)",IF(AND(C19>G32,I43<0),"You need to increase (a),(b) or (e), or decrease (c) or (d)",IF(AND(C19>G32,I43=0),"You need to increase(a),(b), (d) or (e) or decrease (a), (c)or (d)",""))) -> 
B21: Movement of indicator at full forward tilt:
B22: Upward | C22: =100*(R41-$R$37) -> 23.52942365 | D22: cm | E22: =IF(C22>G32,"= Too much","= OK") -> = OK
A23: =IF(AND(C22>G32,I43>0),"You need to increase (b)(d) or (e), or decrease (a) or (c)",IF(AND(C22>G32,I43<0),"You need to increase (a) (b) or (e), or decrease (c) or (d)",IF(AND(C22>G32,I43=0)," You need to increase (a) or (e), or decrease (a), (c)or (d)",""))) -> 
B24: Resolution | C24: =100*(R39-$R$38)/2 -> 2.95610075 | D24: cm/degree
F32: Limit on indicator movement | G32: =IF(D14="03000",24.05,26.05) -> 24.05
F33: Limit on adjuster position due to cable length | G33: =IF(D14="03000",0.85,1.05) -> 0.85
J34: cm | K34: m | L34: inch | O34: effective radius | P34: =SQRT(I45^2+I44^2) -> 1.709502852 | Q34: m
I35: m | J35: Inputted values converted to m
H36: height of cable-guide from floor (a) | I36: =MAX(J36:L36) -> 1.9 | J36: =IF($E5="cm",$D5/100,0) -> 1.9 | K36: =IF($E5="m",$D5,0) -> 0 | L36: =IF($E5="inch",$D5*0.0254,0) -> 0 | N36: Tilt angle | O36: x | P36: y | Q36: z | R36: distance
H37: distance from cable-guide to mast face (b) | I37: =MAX(J37:L37) -> 0.07 | J37: 0.07 | K37: 0 | L37: 0 | N37: 0 | O37: =$P$34*SIN(RADIANS($N37)-ATAN($I$45/$P$34)) -> -0.1790104109 | P37: =$P$34*COS(RADIANS($N37)-ATAN($I$45/$P$34)) -> 1.700104489 | Q37: 0 | R37: =SQRT(($I$46-$I$45-O37)^2+($I$44+$I$43-P37)^2+(Q37-$I$40)^2) -> 0.5811652664
H38: horizontal distance from cable-adjuster to mast face (c) | I38: =MAX(J38:L38) -> 0.65 | J38: 0.65 | K38: 0 | L38: 0 | N38: 1 | O38: =$P$34*SIN(RADIANS($N38)-ATAN($I$45/$P$34)) -> -0.1493122323 | P38: =$P$34*COS(RADIANS($N38)-ATAN($I$45/$P$34)) -> 1.702969717 | Q38: 0 | R38: =SQRT(($I$46-$I$45-O38)^2+($I$44+$I$43-P38)^2+(Q38-$I$40)^2) -> 0.5515911056
H39: height of cable-adjuster from floor (d) | I39: =MAX(J39:L39) -> 1.9 | J39: 1.9 | K39: 0 | L39: 0 | N39: -1 | O39: =$P$34*SIN(RADIANS($N39)-ATAN($I$45/$P$34)) -> -0.2086540613 | P39: =$P$34*COS(RADIANS($N39)-ATAN($I$45/$P$34)) -> 1.696721392 | Q39: 0 | R39: =SQRT(($I$46-$I$45-O39)^2+($I$44+$I$43-P39)^2+(Q39-$I$40)^2) -> 0.6107131206
H40: sideways offset to adjuster (e) | I40: 0.05 | J40: 0.05 | K40: 0 | L40: 0 | N40: =D12 -> 8 | O40: =$P$34*SIN(RADIANS($N40)-ATAN($I$45/$P$34)) -> 0.05934051974 | P40: =$P$34*COS(RADIANS($N40)-ATAN($I$45/$P$34)) -> 1.708472623 | Q40: 0 | R40: =SQRT(($I$46-$I$45-O40)^2+($I$44+$I$43-P40)^2+(Q40-$I$40)^2) -> 0.3444135114
H41: height of mast fulcrum from floor (f) | I41: 0.2 | J41: 0.2 | K41: 0 | L41: 0 | N41: =-D13 -> -8 | O41: =$P$34*SIN(RADIANS($N41)-ATAN($I$45/$P$34)) -> -0.4138771076 | P41: =$P$34*COS(RADIANS($N41)-ATAN($I$45/$P$34)) -> 1.658645755 | Q41: 0 | R41: =SQRT(($I$46-$I$45-O41)^2+($I$44+$I$43-P41)^2+(Q41-$I$40)^2) -> 0.8164595029
H42: distance from mast face to fulcrum (g) | I42: 0.25 | J42: 0.25 | K42: 0 | L42: 0 | N42: negative angle = Forward tilt direction
H43: vertical offset of cable-adjuster (h) | I43: =I39-I36 -> 0
H44: vertical offset of cable-guider (i) | I44: =I36-I41 -> 1.7
H45: horizontal offset of cable guide from fulcrum (i) | I45: =I42-I37 -> 0.18
H46: horizontal distance from cable-guide to cable-adjuster (j) | I46: =I38-I37 -> 0.58

Sheet _SSC (hidden)
A1: _Ctrl_1 | B1: {"WidgetClassification":2,"State":1,"Role":2,"ImagePath":"","EPlacement":1,"ShowText":true,"Theme":0,"ButtonSite":1,"IsInline":false,"CellName":"_Ctrl_1","CellAddress":"='Results'!$A$19","WidgetName":11,"HiddenRow":1,"SheetCodeName":null,"ControlId":null} | C1: {"IsHide":false,"SheetId":0,"Name":"Procedure","HiddenRow":0,"VisibleRange":"","SheetTheme":{"TabColor":"","BodyColor":"","BodyImage":""}} | D1: {"ButtonStyle":0,"Name":"Index","HideSscPoweredlogo":false,"CopyProtect":{"IsEnabled":false,"DomainName":""},"Theme":{"BgColor":"#FFFFFFFF","BgImage":"","InputBorderStyle":0},"Layout":3,"SmartphoneSettings":{"ViewportLock":false,"UseOldViewEngine":false,"EnableZoom":true,"EnableSwipe":true,"HideToolbar":true,"InheritBackgroundColor":false,"CheckboxFlavor":3},"SmartphoneTheme":0,"InputDetection":2,"Toolbar":{"Position":1,"IsSubmit":false,"IsPrint":false,"IsPrintAll":false,"IsReset":false,"IsUpdate":false},"AspnetConfig":{"BrowseUrl":"http://localhost/ssc","FileExtension":0},"ConfigureSubmit":{"IsShowCaptcha":false,"IsUseSscWebServer":true,"ReceiverCode":"","IsFreeService":false,"IsAdvanceService":false,"IsDemonstrationService":true,"AfterSuccessfulSubmit":"","AfterFailSubmit":"","AfterCancelWizard":"","IsUseOwnWebServer":false,"OwnWebServerURL":"","OwnWebServerTarget":"","SubmitTarget":0},"Flavor":0,"Edition":3,"IgnoreBgInputCell":false} | E1: {"Captcha":{"Heading":"Enter the number displayed below.","Message":"This is to verify that you are a human visitor, to prevent automated form submissions.","OkButton":"OK","CancelButton":"Cancel","ErrorMessage":"Your answer is incorrect, please try again."},"RequiredField":{"ErrorMessage":"The fields with the red border are required.","OkButton":"OK","DDLDefaultRequiredText":"Please Select"},"WizardButton":{"Next":"Next","Previous":"Previous","Cancel":"Start","Finish":"End"},"ToolbarButton":{"Submit":"Submit","Print":"Print","PrintAll":"Print All","Reset":"Reset","Update":"Update","Back":"Back"},"BrowserAndLocation":{"Browsers":[],"ConversionPath":"C:\\Users\\Antony\\Documents\\SpreadsheetConverter"},"AdvancedSettingsModels":[],"Dropbox":{"AccessToken":"","AccessSecret":""},"SpreadsheetServer":{"Username":"","Password":"","ServerUrl":""},"ConfigureSubmitDefault":{"Email":""}}
A2: _Ctrl_2 | B2: {"WidgetClassification":0,"State":1,"IsRequired":false,"DDLDefaultRequiredText":"cm","ListItem":"cm\r\nm\r\ninch","VlookupRange":"","ShowListLabel":true,"ShowDt":false,"CellName":"_Ctrl_2","CellAddress":"='Diagram'!$C$3","WidgetName":3,"HiddenRow":2,"SheetCodeName":null,"ControlId":null} | C2: {"IsHide":false,"SheetId":0,"Name":"Step 1","HiddenRow":0,"VisibleRange":"","SheetTheme":{"TabColor":"","BodyColor":"","BodyImage":""}}
A3: _Ctrl_3 | C3: {"IsHide":false,"SheetId":0,"Name":"Results","HiddenRow":0,"VisibleRange":"","SheetTheme":{"TabColor":"","BodyColor":"","BodyImage":""}}
A4: _Ctrl_4 | B4: {"WidgetClassification":3,"State":1,"HyperlinkFlavor":1,"Placement":0,"LinkTarget":3,"CellName":"_Ctrl_4","CellAddress":"='Step 8'!$A$4","WidgetName":8,"HiddenRow":4,"SheetCodeName":null,"ControlId":null} | C4: {"IsHide":true,"SheetId":0,"Name":"Step 2","HiddenRow":0,"VisibleRange":"","SheetTheme":{"TabColor":"","BodyColor":"","BodyImage":""}}
A5: _Ctrl_5 | B5: {"WidgetClassification":3,"State":1,"HyperlinkFlavor":1,"Placement":0,"LinkTarget":3,"CellName":"_Ctrl_5","CellAddress":"='Step 1'!$B$3","WidgetName":8,"HiddenRow":5,"SheetCodeName":null,"ControlId":null} | C5: {"IsHide":true,"SheetId":0,"Name":"Step 3","HiddenRow":0,"VisibleRange":"","SheetTheme":{"TabColor":"","BodyColor":"","BodyImage":""}}
A6: _Ctrl_6 | B6: {"WidgetClassification":0,"State":1,"IsRequired":true,"DDLDefaultRequiredText":"cm","ListItem":"cm\r\nm\r\ninch","VlookupRange":"","ShowListLabel":true,"ShowDt":true,"CellName":"_Ctrl_6","CellAddress":"='Step 2'!$C$2","WidgetName":3,"HiddenRow":6,"SheetCodeName":null,"ControlId":null} | C6: {"IsHide":true,"SheetId":0,"Name":"Step 4","HiddenRow":0,"VisibleRange":"","SheetTheme":{"TabColor":"","BodyColor":"","BodyImage":""}}
A7: _Ctrl_7 | B7: {"WidgetClassification":0,"State":1,"IsRequired":false,"DDLDefaultRequiredText":"cm","ListItem":"cm\r\nm\r\ninch","VlookupRange":"","ShowListLabel":true,"ShowDt":false,"CellName":"_Ctrl_7","CellAddress":"='Step 3'!$C$2","WidgetName":3,"HiddenRow":7,"SheetCodeName":null,"ControlId":null} | C7: {"IsHide":true,"SheetId":0,"Name":"Step 5","HiddenRow":0,"VisibleRange":"","SheetTheme":{"TabColor":"","BodyColor":"","BodyImage":""}}
A8: _Ctrl_8 | B8: {"WidgetClassification":0,"State":1,"IsRequired":false,"DDLDefaultRequiredText":"cm","ListItem":"cm\r\nm\r\ninch","VlookupRange":"","ShowListLabel":true,"ShowDt":false,"CellName":"_Ctrl_8","CellAddress":"='Step 4'!$C$2","WidgetName":3,"HiddenRow":8,"SheetCodeName":null,"ControlId":null} | C8: {"IsHide":true,"SheetId":0,"Name":"Step 6","HiddenRow":0,"VisibleRange":"","SheetTheme":{"TabColor":"","BodyColor":"","BodyImage":""}}
A9: _Ctrl_9 | B9: {"WidgetClassification":0,"State":1,"IsRequired":false,"DDLDefaultRequiredText":"cm","ListItem":"cm\r\nm\r\ninch","VlookupRange":"","ShowListLabel":true,"ShowDt":false,"CellName":"_Ctrl_9","CellAddress":"='Step 5'!$C$2","WidgetName":3,"HiddenRow":9,"SheetCodeName":null,"ControlId":null} | C9: {"IsHide":true,"SheetId":0,"Name":"Step 7","HiddenRow":0,"VisibleRange":"","SheetTheme":{"TabColor":"","BodyColor":"","BodyImage":""}}
A10: _Ctrl_10 | B10: {"WidgetClassification":0,"State":1,"IsRequired":false,"DDLDefaultRequiredText":"cm","ListItem":"cm\r\nm\r\ninch","VlookupRange":"","ShowListLabel":true,"ShowDt":false,"CellName":"_Ctrl_10","CellAddress":"='Step 6'!$C$2","WidgetName":3,"HiddenRow":10,"SheetCodeName":null,"ControlId":null} | C10: {"IsHide":true,"SheetId":0,"Name":"Step 8","HiddenRow":0,"VisibleRange":"","SheetTheme":{"TabColor":"","BodyColor":"","BodyImage":""}}
A11: _Ctrl_11 | B11: {"WidgetClassification":0,"State":1,"IsRequired":false,"DDLDefaultRequiredText":"cm","ListItem":"cm\r\nm\r\ninch","VlookupRange":"","ShowListLabel":true,"ShowDt":false,"CellName":"_Ctrl_11","CellAddress":"='Step 7'!$C$2","WidgetName":3,"HiddenRow":11,"SheetCodeName":null,"ControlId":null} | C11: {"IsHide":true,"SheetId":0,"Name":"Step 9","HiddenRow":0,"VisibleRange":"","SheetTheme":{"TabColor":"","BodyColor":"","BodyImage":""}}
A12: _Ctrl_12
A13: _Ctrl_13
A14: _Ctrl_14 | B14: {"WidgetClassification":2,"State":1,"Role":1,"ImagePath":"","EPlacement":1,"ShowText":true,"Theme":0,"ButtonSite":1,"IsInline":false,"CellName":"_Ctrl_14","CellAddress":"='Results'!$A$20","WidgetName":11,"HiddenRow":14,"SheetCodeName":null,"ControlId":null}
A15: _Ctrl_15 | B15: {"WidgetClassification":0,"State":1,"IsRequired":false,"DDLDefaultRequiredText":"Please Select","ListItem":"cm\r\nm\r\ninch","VlookupRange":"","ShowListLabel":false,"ShowDt":false,"CellName":"_Ctrl_15","CellAddress":"='Results'!$C$3","WidgetName":3,"HiddenRow":15,"SheetCodeName":null,"ControlId":null}
A16: _Ctrl_16 | B16: {"WidgetClassification":0,"State":1,"IsRequired":false,"DDLDefaultRequiredText":"Please Select","ListItem":"03000\r\n03002","VlookupRange":"","ShowListLabel":false,"ShowDt":false,"CellName":"_Ctrl_16","CellAddress":"='Results'!$D$15","WidgetName":3,"HiddenRow":16,"SheetCodeName":null,"ControlId":null}

Sheet _Options (hidden)
A1: cm | B1: cm | C1: cm | D1: cm | E1: cm | F1: cm | G1: cm | H1: cm | I1: cm | J1: cm | K1: cm | L1: cm | M1: cm | N1: cm | O1: cm | P1: cm | Q1: cm | R1: cm | S1: cm | T1: cm | U1: cm | V1: cm | W1: cm | X1: cm | Y1: cm | Z1: cm | AA1: cm | AB1: cm | AC1: cm | AD1: cm | AE1: cm | AF1: cm | AG1: cm | AH1: cm | AI1: cm | AJ1: cm | AK1: cm | AL1: cm | AM1: cm | AN1: cm | AO1: cm | AP1: cm | AQ1: cm | AR1: cm | AS1: cm | AT1: cm | AU1: cm | AV1: cm | AW1: cm | AX1: cm | AY1: cm | AZ1: cm | BA1: cm | BB1: cm | BC1: cm | BD1: cm | BE1: cm | BF1: cm | BG1: cm | BH1: cm | BI1: cm | BJ1: cm | BK1: cm | BL1: 03000 | BM1: '03000 | BN1: 03000
A2: m | B2: m | C2: m | D2: m | E2: m | F2: m | G2: m | H2: m | I2: m | J2: m | K2: m | L2: m | M2: m | N2: m | O2: m | P2: m | Q2: m | R2: m | S2: m | T2: m | U2: m | V2: m | W2: m | X2: m | Y2: m | Z2: m | AA2: m | AB2: m | AC2: m | AD2: m | AE2: m | AF2: m | AG2: m | AH2: m | AI2: m | AJ2: m | AK2: m | AL2: m | AM2: m | AN2: m | AO2: m | AP2: m | AQ2: m | AR2: m | AS2: m | AT2: m | AU2: m | AV2: m | AW2: m | AX2: m | AY2: m | AZ2: m | BA2: m | BB2: m | BC2: m | BD2: m | BE2: m | BF2: m | BG2: m | BH2: m | BI2: m | BJ2: m | BK2: m | BL2: 03002 | BM2: '03002 | BN2: 03002
A3: inch | B3: inch | C3: inch | D3: inch | E3: inch | F3: inch | G3: inch | H3: inch | I3: inch | J3: inch | K3: inch | L3: inch | M3: inch | N3: inch | O3: inch | P3: inch | Q3: inch | R3: inch | S3: inch | T3: inch | U3: inch | V3: inch | W3: inch | X3: inch | Y3: inch | Z3: inch | AA3: inch | AB3: inch | AC3: inch | AD3: inch | AE3: inch | AF3: inch | AG3: inch | AH3: inch | AI3: inch | AJ3: inch | AK3: inch | AL3: inch | AM3: inch | AN3: inch | AO3: inch | AP3: inch | AQ3: inch | AR3: inch | AS3: inch | AT3: inch | AU3: inch | AV3: inch | AW3: inch | AX3: inch | AY3: inch | AZ3: inch | BA3: inch | BB3: inch | BC3: inch | BD3: inch | BE3: inch | BF3: inch | BG3: inch | BH3: inch | BI3: inch | BJ3: inch | BK3: inch
